bitfinex/quotes_BTCUSD_20241223
["timestamp","ask_amount","ask_price","bid_price","bid_amount"]
[1734964271032,0.10398632,95570.0,95552.0,0.01999767]
[1734964271033,0.03264949,95569.0,95552.0,0.01999767]
[1734964271231,0.10398632,95568.0,95558.0,0.001]
[1734964271433,0.209287,95563.0,95558.0,0.003]
[1734964271631,0.20929,95561.0,95558.0,0.003]
[1734964271878,0.209294,95559.0,95558.0,0.003]
[1734964272055,0.31328032,95559.0,95558.0,0.003]
[1734964272284,0.209285,95564.0,95558.0,0.003]
[1734964272492,0.10398632,95563.0,95558.0,0.002]
[1734964272690,0.10398632,95563.0,95549.0,0.15162666]
[1734964272913,0.209288,95562.0,95549.0,0.15162666]
[1734964273093,0.10398632,95561.0,95549.0,0.15162666]
[1734964273321,0.10398632,95561.0,95542.0,0.20933]
[1734964273644,0.209301,95556.0,95541.0,0.17522254]
[1734964273947,0.209292,95560.0,95541.0,0.15]
[1734964274095,0.61697644,95622.0,95541.0,0.15]
[1734964274096,0.10398632,95555.0,95541.0,0.15]
[1734964274300,0.10398632,95555.0,95549.0,0.001]
[1734964274499,0.10398632,95555.0,95541.0,0.359333]
[1734964274698,0.10398632,95555.0,95545.0,0.15162666]
[1734964274897,0.21629,95561.0,95545.0,0.15162666]
[1734964275107,0.209294,95559.0,95545.0,0.15162666]
[1734964275308,0.10398632,95560.0,95545.0,0.36095066]
[1734964275507,0.007,95561.0,95545.0,0.15162666]
[1734964275711,0.006,95561.0,95560.0,0.209292]
[1734964275915,0.006,95561.0,95560.0,0.359292]
[1734964276132,0.209243,95583.0,95561.0,0.15]
[1734964276326,0.209243,95583.0,95564.0,0.15162666]
[1734964276646,0.209234,95587.0,95565.0,0.209281]
[1734964276647,0.418468,95587.0,95565.0,0.209281]
[1734964277002,0.209234,95587.0,95569.0,0.209271]
[1734964277200,0.209234,95587.0,95570.0,0.20927]
[1734964277524,0.209241,95584.0,95564.0,0.15362666]
[1734964277709,0.209249,95580.0,95564.0,0.15462666]
[1734964278061,0.209264,95573.0,95564.0,0.003]
[1734964278279,0.209266,95572.0,95564.0,0.003]
[1734964278491,0.31325232,95572.0,95564.0,0.003]
[1734964278625,0.00024484,95574.0,95564.0,0.003]
[1734964278626,0.209277,95567.0,95564.0,0.003]
[1734964278830,0.209281,95565.0,95553.0,0.15]
[1734964279047,0.10398632,95564.0,95553.0,0.02596384]
[1734964279243,0.10398632,95564.0,95552.0,0.536]
[1734964279244,0.209286,95563.0,95552.0,0.536]
[1734964279433,0.10398632,95562.0,95552.0,0.536]
[1734964279631,0.10398632,95562.0,95552.0,0.56171527]
[1734964279880,0.209301,95556.0,95552.0,0.536]
[1734964280145,0.10398632,95556.0,95552.0,0.536]
[1734964280316,0.007,95564.0,95553.0,0.001]
[1734964280463,0.10398632,95563.0,95553.0,0.001]
[1734964280657,0.10398632,95563.0,95550.0,0.15162666]
[1734964280929,0.003,95562.0,95551.0,0.209312]
[1734964281128,0.003,95562.0,95550.0,0.15162666]
[1734964281302,0.003,95562.0,95552.0,0.209309]
[1734964281510,0.003,95562.0,95550.0,0.17732627]
[1734964281711,0.003,95562.0,95555.0,0.209302]
[1734964282032,0.00155278,95574.0,95556.0,0.209301]
[1734964282336,0.10398632,95573.0,95556.0,0.209301]
[1734964282596,0.20929,95561.0,95552.0,0.15]
[1734964282844,0.209299,95557.0,95538.0,0.20934]
[1734964283092,0.209294,95559.0,95555.0,0.001]
[1734964283344,0.00024484,95574.0,95543.0,0.15]
[1734964283345,0.10398632,95556.0,95543.0,0.15]
[1734964283604,0.18068632,95554.0,95527.0,0.02605806]
[1734964283849,0.209346,95536.0,95527.0,0.02605806]
[1734964284102,0.10398632,95535.0,95527.0,0.02605806]
[1734964284344,0.209359,95530.0,95527.0,0.0001714]
[1734964284581,0.10398632,95529.0,95527.0,0.0001714]
[1734964285118,0.10398632,95529.0,95527.0,0.000704]
[1734964285897,0.31434832,95529.0,95527.0,0.006704]
[1734964286235,0.001,95529.0,95527.0,0.009704]
[1734964286637,0.209344,95537.0,95527.0,0.003704]
[1734964286831,0.001,95529.0,95527.0,0.005704]
[1734964287106,0.001,95529.0,95527.0,0.008704]
[1734964287223,0.00053542,95529.0,95527.0,0.008704]
[1734964288055,0.00130848,95535.0,95527.0,0.003704]
[1734964288290,0.001,95529.0,95527.0,0.009704]
[1734964288697,0.19328495,95528.0,95527.0,0.003704]
[1734964288969,0.40395567,95528.0,95527.0,0.005704]
[1734964289174,0.40264695,95528.0,95527.0,0.001704]
[1734964289616,0.40264695,95528.0,95527.0,0.007704]
[1734964289821,0.50264695,95528.0,95527.0,0.000704]
[1734964290030,0.39314832,95528.0,95527.0,0.000704]
[1734964290444,0.39214832,95528.0,95527.0,0.000704]
[1734964290853,0.39314832,95528.0,95527.0,0.000704]
[1734964291311,0.39414832,95528.0,95527.0,0.000704]
[1734964291938,0.39614832,95528.0,95527.0,0.000704]
[1734964292172,0.46469845,95528.0,95527.0,0.000704]
[1734964292378,0.46669845,95528.0,95527.0,0.000704]
[1734964293004,0.46569845,95528.0,95527.0,0.000704]
[1734964293183,0.56669845,95528.0,95527.0,0.000704]
[1734964293394,0.61449845,95528.0,95527.0,0.000704]
[1734964294013,0.209413,95505.0,95495.0,0.0001712]
[1734964294219,0.209413,95505.0,95504.0,0.00033052]
[1734964294220,0.41654062,95505.0,95504.0,0.00033052]
[1734964294371,0.56334062,95505.0,95504.0,0.00033052]
[1734964294580,0.71334062,95505.0,95504.0,0.00033052]
[1734964294919,0.71334062,95505.0,95495.0,0.0001712]
[1734964294920,0.209432,95496.0,95495.0,0.0001712]
[1734964295172,0.41341832,95496.0,95495.0,0.00029394]
[1734964295379,0.47570295,95496.0,95495.0,0.00029394]
[1734964295531,0.72570295,95496.0,95495.0,0.00029394]
[1734964295739,0.309467,95480.0,95475.0,0.2]
[1734964295993,0.309467,95480.0,95479.0,0.0001636]
[1734964295994,0.46305332,95480.0,95479.0,0.0001636]
[1734964296196,0.35,95478.0,95477.0,0.02898957]
[1734964296370,0.35,95478.0,95475.0,0.2]
[1734964296371,0.25,95476.0,95475.0,0.2]
[1734964296578,0.35398632,95476.0,95475.0,0.20015952]
[1734964297592,0.2,95471.0,95470.0,0.16602998]
[1734964297803,0.2,95471.0,95462.0,0.2]
[1734964297804,0.2,95463.0,95462.0,0.2]
[1734964298025,0.45529607,95463.0,95462.0,0.14436438]
[1734964298196,0.53259852,95463.0,95462.0,0.13526438]
[1734964298393,0.53259852,95463.0,95462.0,0.09336238]
[1734964298618,0.53756085,95463.0,95462.0,0.03050938]
[1734964299161,0.559507,95462.0,95461.0,0.17735373]
[1734964299374,0.69725939,95462.0,95461.0,0.13835373]
[1734964299600,0.69725939,95462.0,95457.0,0.200171]
[1734964299601,0.35,95460.0,95459.0,0.03410104]
[1734964299815,0.35,95460.0,95433.0,0.2]
[1734964299816,0.2,95449.0,95433.0,0.2]
[1734964300032,0.2,95447.0,95433.0,0.2]
[1734964300245,0.35,95445.0,95444.0,0.01565774]
[1734964300450,0.35,95445.0,95433.0,0.2]
[1734964300451,0.35,95441.0,95440.0,0.179386]
[1734964300658,0.35,95441.0,95440.0,0.174686]
[1734964300878,0.35,95441.0,95440.0,0.118432]
[1734964300879,0.78393166,95441.0,95440.0,0.118432]
[1734964301090,0.78393166,95441.0,95437.0,0.16044551]
[1734964301091,0.35,95438.0,95437.0,0.16044551]
[1734964301311,2.16622632,95438.0,95437.0,0.016589]
[1734964301524,2.16622632,95438.0,95435.0,0.095381]
[1734964301525,0.35,95436.0,95435.0,0.095381]
[1734964301748,1.66237158,95436.0,95435.0,0.05594567]
[1734964301952,1.66237158,95436.0,95435.0,0.04494567]
[1734964302158,1.66237158,95436.0,95435.0,0.04464567]
[1734964302567,1.66237158,95436.0,95435.0,0.00272967]
[1734964302803,0.2,95434.0,95433.0,0.16098487]
[1734964303001,1.88458866,95434.0,95433.0,0.14002687]
[1734964303209,1.88119988,95434.0,95433.0,0.14002687]
[1734964303480,1.88119988,95434.0,95433.0,0.05759897]
[1734964303683,0.2,95432.0,95431.0,0.17393817]
[1734964303888,0.2,95432.0,95431.0,0.17363817]
[1734964303889,0.20398632,95432.0,95431.0,0.17363817]
[1734964304104,0.30398632,95432.0,95431.0,0.17875801]
[1734964304305,0.30398632,95432.0,95431.0,0.17405801]
[1734964304609,0.30398632,95432.0,95431.0,0.11118401]
[1734964304810,0.30398632,95432.0,95429.0,0.17819585]
[1734964304811,0.2,95430.0,95429.0,0.17819585]
[1734964305021,2.30037369,95430.0,95429.0,0.12004585]
[1734964305219,1.08130028,95430.0,95429.0,0.12004585]
[1734964305449,1.03429428,95430.0,95429.0,0.03234266]
[1734964305856,0.56719775,95429.0,95428.0,0.12754766]
[1734964306066,1.17695132,95429.0,95428.0,0.05454766]
[1734964306279,0.76457432,95429.0,95428.0,0.05454766]
[1734964306480,0.2,95427.0,95426.0,0.17071166]
[1734964306698,0.74291832,95427.0,95426.0,0.14975266]
[1734964306909,0.74291832,95427.0,95426.0,0.14522016]
[1734964306910,0.60819332,95427.0,95426.0,0.14522016]
[1734964307117,0.62021828,95427.0,95426.0,0.14522016]
[1734964307342,0.59069832,95427.0,95426.0,0.14522016]
[1734964307557,0.56467124,95427.0,95426.0,0.08234316]
[1734964307764,0.45398632,95427.0,95426.0,0.04042316]
[1734964308169,0.31298632,95427.0,95426.0,0.04142316]
[1734964308689,0.2,95425.0,95424.0,0.17854516]
[1734964308822,0.41048968,95425.0,95424.0,0.13662516]
[1734964309027,0.40917932,95425.0,95424.0,0.13662516]
[1734964309531,0.55917932,95425.0,95424.0,0.03182516]
[1734964309943,0.58869928,95425.0,95424.0,0.03182516]
[1734964310170,0.60945947,95425.0,95424.0,0.03182516]
[1734964310376,0.61845947,95425.0,95424.0,0.02215851]
[1734964310582,0.2,95423.0,95422.0,0.15927851]
[1734964310781,2.41177474,95423.0,95422.0,0.11735851]
[1734964311064,1.61517628,95423.0,95422.0,0.11705851]
[1734964311232,1.61517628,95423.0,95422.0,0.03429022]
[1734964311783,0.35,95421.0,95420.0,0.12948522]
[1734964311931,1.56393632,95421.0,95420.0,0.12948522]
[1734964312137,1.57222628,95421.0,95420.0,0.12948522]
[1734964312343,1.57222628,95421.0,95420.0,0.09652422]
[1734964312548,1.57389603,95421.0,95420.0,0.03364122]
[1734964312747,1.57389603,95421.0,95420.0,0.00798022]
[1734964312943,1.57389603,95421.0,95420.0,0.00308022]
[1734964313344,0.2,95419.0,95418.0,0.16215822]
[1734964313543,0.9127189,95419.0,95418.0,0.09927522]
[1734964313773,0.84496403,95419.0,95418.0,0.09927522]
[1734964313974,0.83178028,95419.0,95418.0,0.09927522]
[1734964314133,0.60204828,95419.0,95418.0,0.09927522]
[1734964314348,0.45398632,95419.0,95418.0,0.05735322]
[1734964314550,0.559604,95418.0,95417.0,0.19500235]
[1734964314907,1.66657671,95418.0,95417.0,0.15358103]
[1734964315108,1.66657671,95418.0,95417.0,0.12744103]
[1734964315324,1.66657671,95418.0,95383.0,8.56e-05]
[1734964315325,0.35,95414.0,95413.0,0.12959197]
[1734964315535,0.2,95410.0,95409.0,0.15649718]
[1734964315740,0.35,95408.0,95407.0,0.04254614]
[1734964315946,0.2,95401.0,95400.0,0.07950944]
[1734964316218,0.2,95401.0,95369.0,0.03624551]
[1734964316219,0.35,95370.0,95369.0,0.03624551]
[1734964316440,0.2,95366.0,95365.0,0.16957744]
[1734964316641,0.35131115,95366.0,95365.0,0.10682105]
[1734964316868,0.35,95362.0,95353.0,0.2]
[1734964317078,0.788428,95362.0,95361.0,0.20024477]
[1734964317311,0.830496,95362.0,95361.0,0.18342861]
[1734964317514,0.830496,95362.0,95361.0,0.12050961]
[1734964317726,0.78859472,95362.0,95361.0,0.07856361]
[1734964317931,0.78859472,95362.0,95361.0,0.05986361]
[1734964318241,0.79759472,95362.0,95361.0,0.05986361]
[1734964318445,0.2,95352.0,95351.0,0.13068515]
[1734964318694,4.66025852,95352.0,95351.0,0.11868515]
[1734964318900,4.66025852,95352.0,95351.0,0.10943484]
[1734964318901,4.18683049,95352.0,95351.0,0.10943484]
[1734964319091,2.55120149,95352.0,95351.0,0.10943484]
[1734964319284,1.534529,95352.0,95351.0,0.10943484]
[1734964319486,1.534529,95352.0,95351.0,0.04180684]
[1734964319679,1.534529,95352.0,95351.0,0.02083084]
[1734964319880,0.35,95350.0,95349.0,0.19985484]
[1734964320089,1.863525,95350.0,95349.0,0.12779043]
[1734964320492,0.667647,95350.0,95349.0,0.02291043]
[1734964320808,0.667647,95350.0,95349.0,0.01091043]
[1734964320809,0.67488749,95350.0,95349.0,0.01091043]
[1734964321137,0.35,95348.0,95347.0,0.13791043]
[1734964321344,3.188292,95348.0,95347.0,0.11693343]
[1734964321550,3.25558281,95348.0,95347.0,0.03302543]
[1734964321756,0.35,95346.0,95345.0,0.10172783]
[1734964321966,0.2,95344.0,95337.0,0.2000856]
[1734964322306,4.98420507,95344.0,95343.0,0.02589468]
[1734964322535,0.35,95342.0,95341.0,0.11630468]
[1734964322730,3.17363763,95342.0,95341.0,0.11630468]
[1734964322943,1.27579263,95342.0,95341.0,0.11630468]
[1734964323166,0.87064063,95342.0,95341.0,0.11630468]
[1734964323362,0.95458763,95342.0,95341.0,0.11630468]
[1734964323576,0.86509663,95342.0,95341.0,0.09532768]
[1734964323778,0.86509663,95342.0,95341.0,0.07435068]
[1734964323947,0.87409663,95342.0,95341.0,0.01141668]
[1734964324143,0.88309663,95342.0,95341.0,0.01141668]
[1734964324353,0.88309663,95342.0,95339.0,0.19043868]
[1734964324354,0.2,95340.0,95339.0,0.19043868]
[1734964324555,0.8020619,95340.0,95339.0,0.10652668]
[1734964324756,0.84948732,95340.0,95339.0,0.10652668]
[1734964325365,0.84948732,95340.0,95339.0,0.08554868]
[1734964325778,0.84948732,95340.0,95339.0,0.04359268]
[1734964326235,0.84948732,95340.0,95337.0,0.2000856]
[1734964326236,0.35,95338.0,95337.0,0.11432028]
[1734964326423,4.06335232,95338.0,95337.0,0.03040428]
[1734964326638,2.97606932,95338.0,95337.0,0.00942528]
[1734964326779,2.90400932,95338.0,95337.0,0.00942528]
[1734964327159,2.21115532,95338.0,95337.0,0.00942528]
[1734964327430,1.57512632,95338.0,95337.0,0.00942528]
[1734964327699,1.57512632,95338.0,95322.0,0.2]
[1734964327700,0.2,95336.0,95335.0,0.16746728]
[1734964327948,2.29743032,95336.0,95335.0,0.10453028]
[1734964328393,2.29743032,95336.0,95335.0,0.09013028]
[1734964328568,2.20079432,95336.0,95335.0,0.02719328]
[1734964329070,0.35,95334.0,95333.0,0.18523528]
[1734964329285,0.45398632,95334.0,95333.0,0.18523528]
[1734964329495,0.30398632,95334.0,95333.0,0.18523528]
[1734964329704,0.10398632,95334.0,95333.0,0.18523528]
[1734964329921,0.07448608,95334.0,95333.0,0.31083528]
[1734964330128,0.1,95376.0,95334.0,0.1247]
[1734964330344,0.523983,95423.0,95341.0,0.209771]
[1734964330345,0.209704,95373.0,95341.0,0.209771]
[1734964330550,0.10477565,95372.0,95348.0,0.123]
[1734964330757,0.1,95370.0,95350.0,0.0779]
[1734964330966,0.10477565,95369.0,95350.0,0.0779]
[1734964331173,0.00015902,95376.0,95351.0,0.0451]
[1734964331378,0.1,95419.0,95370.0,0.15263511]
[1734964331583,0.10398632,95418.0,95380.0,0.19973511]
[1734964331793,0.10398632,95418.0,95401.0,0.0471]
[1734964331993,0.00015973,95419.0,95401.0,0.0471]
[1734964332554,0.0001716,95440.0,95410.0,0.0471]
[1734964332754,0.00070381,95427.0,95410.0,0.0471]
[1734964332969,0.006,95418.0,95410.0,0.0471]
[1734964333367,0.002,95419.0,95410.0,0.0471]
[1734964333571,0.006,95419.0,95410.0,0.0471]
[1734964333819,0.004,95419.0,95410.0,0.0471]
[1734964334020,0.10398632,95418.0,95410.0,0.0471]
[1734964334229,0.1,95412.0,95411.0,0.0757]
[1734964334428,0.2,95411.0,95410.0,0.002]
[1734964334636,0.30398632,95411.0,95410.0,0.002]
[1734964335053,0.45398632,95411.0,95410.0,0.002]
[1734964335474,0.209648,95398.0,95395.0,0.0809]
[1734964335678,0.359652,95396.0,95395.0,0.0809]
[1734964335902,0.25398632,95396.0,95388.0,0.046]
[1734964336106,0.25398632,95396.0,95379.0,0.0759]
[1734964336107,0.1,95376.0,95368.0,0.0494]
[1734964336314,0.459711,95369.0,95368.0,0.0494]
[1734964336517,0.25,95368.0,95334.0,0.0464]
[1734964336717,0.1,95362.0,95334.0,0.0464]
[1734964336919,0.15,95358.0,95334.0,0.0464]
[1734964337174,0.15,95356.0,95334.0,0.0464]
[1734964337442,0.15,95354.0,95334.0,0.0464]
[1734964338582,0.1,95362.0,95334.0,0.0464858]
[1734964338583,0.10398632,95353.0,95334.0,0.0464858]
[1734964338751,0.15,95352.0,95334.0,0.0464858]
[1734964338959,0.10398632,95351.0,95334.0,0.0464858]
[1734964339135,0.15,95346.0,95334.0,0.0464858]
[1734964339334,0.20978,95338.0,95334.0,0.0474858]
[1734964339519,0.20978,95338.0,95334.0,0.0464858]
[1734964339520,0.25398632,95337.0,95334.0,0.0464858]
[1734964339726,0.15,95337.0,95334.0,0.0464858]
[1734964340176,0.006,95352.0,95334.0,0.0464858]
[1734964340389,0.006,95352.0,95335.0,0.10398632]
[1734964340555,0.209689,95380.0,95336.0,0.00104877]
[1734964340909,0.209677,95385.0,95342.0,0.209771]
[1734964341112,0.20968,95383.0,95348.0,0.209755]
[1734964341401,0.1,95406.0,95349.0,0.15013498]
[1734964341604,0.10398632,95403.0,95359.0,0.0813]
[1734964341816,0.1,95383.0,95359.0,0.0813]
[1734964342039,0.20398632,95379.0,95359.0,0.0813]
[1734964342266,0.20398632,95379.0,95359.0,0.0083]
[1734964342477,0.10398632,95375.0,95359.0,0.0083]
[1734964342688,0.359701,95374.0,95359.0,0.0083]
[1734964342900,0.309691,95379.0,95359.0,0.0083]
[1734964342901,0.31368932,95373.0,95359.0,0.0083]
[1734964343114,0.004,95383.0,95359.0,0.0083]
[1734964343328,0.21669,95379.0,95359.0,0.0083]
[1734964343551,0.25398632,95378.0,95359.0,0.0033]
[1734964343969,0.15,95378.0,95359.0,0.0033]
[1734964344195,0.15,95378.0,95360.0,0.0483]
[1734964344405,0.008,95375.0,95360.0,0.0483]
[1734964344619,0.008,95375.0,95360.0,0.04934855]
[1734964344834,0.008,95375.0,95360.0,0.0483]
[1734964345676,0.209666,95390.0,95360.0,0.0483]
[1734964345878,0.008,95378.0,95360.0,0.0483]
[1734964346114,0.008,95378.0,95350.0,0.209753]
[1734964346327,0.008,95378.0,95351.0,0.10398632]
[1734964346539,0.001,95375.0,95351.0,0.10503486]
[1734964346746,0.00104854,95374.0,95347.0,0.536]
[1734964346954,0.001,95375.0,95336.0,0.536]
[1734964346955,0.15,95372.0,95336.0,0.536]
[1734964347163,0.15,95372.0,95330.0,8.56e-05]
[1734964347164,0.23466435,95370.0,95330.0,8.56e-05]
[1734964347374,0.1,95367.0,95333.0,0.18048081]
[1734964347595,0.15,95359.0,95333.0,0.18048081]
[1734964347810,0.15,95357.0,95333.0,0.18048081]
[1734964348015,0.00104854,95356.0,95333.0,0.18048081]
[1734964348227,0.209699,95375.0,95334.0,0.31482317]
[1734964348445,0.359718,95366.0,95334.0,0.10398632]
[1734964348687,0.00104854,95365.0,95334.0,0.10398632]
[1734964349178,0.00104854,95365.0,95336.0,0.001]
[1734964349393,0.00104854,95365.0,95337.0,0.1257]
[1734964349394,0.23466435,95360.0,95337.0,0.1257]
[1734964349641,0.25503486,95359.0,95337.0,0.1257]
[1734964350293,0.25503486,95359.0,95337.0,0.1207]
[1734964350671,0.1,95356.0,95337.0,0.1207]
[1734964350872,0.15,95354.0,95337.0,0.1207]
[1734964351184,0.15,95352.0,95337.0,0.0477]
[1734964351385,0.10503486,95351.0,95337.0,0.0466]
[1734964351551,0.15,95350.0,95337.0,0.0466]
[1734964351751,0.23466435,95360.0,95337.0,0.0466]
[1734964351752,0.15,95348.0,95337.0,0.0466]
[1734964351952,0.00104854,95347.0,95337.0,0.0466]
[1734964353139,0.004,95347.0,95337.0,0.0466]
[1734964353345,0.002,95350.0,95338.0,0.209779]
[1734964353559,0.002,95350.0,95349.0,0.209755]
[1734964353792,0.09258179,95411.0,95354.0,0.536]
[1734964354024,0.00104854,95410.0,95377.0,0.209692]
[1734964354225,0.00104854,95410.0,95376.0,0.0753]
[1734964354450,0.10398632,95378.0,95351.0,0.0753]
[1734964354655,0.00104854,95377.0,95351.0,0.28505]
[1734964354865,0.00104854,95377.0,95355.0,0.20974]
[1734964355070,0.00104854,95377.0,95351.0,0.0753]
[1734964355274,0.00104854,95377.0,95351.0,0.07545973]
[1734964355478,0.1,95400.0,95354.0,0.1]
[1734964355685,0.00104854,95399.0,95357.0,0.536]
[1734964355896,0.041968,95417.0,95376.0,0.209694]
[1734964356105,0.00104854,95416.0,95378.0,0.209691]
[1734964356784,0.00104854,95416.0,95384.0,0.536]
[1734964356995,0.0001716,95427.0,95383.0,0.1]
[1734964356996,0.00104854,95426.0,95401.0,0.209639]
[1734964357201,0.00104854,95426.0,95385.0,0.63998632]
[1734964357202,0.10503486,95425.0,95402.0,0.209639]
[1734964357413,0.0001716,95427.0,95411.0,0.209618]
[1734964357632,0.0001716,95427.0,95415.0,0.209609]
[1734964357850,0.0001716,95427.0,95398.0,0.0468]
[1734964358067,0.00070381,95427.0,95413.0,0.209613]
[1734964358290,0.00070381,95427.0,95414.0,0.10398632]
[1734964358498,0.0001716,95440.0,95426.0,0.0492]
[1734964359378,0.0001716,95440.0,95417.0,0.209606]
[1734964359580,0.0001716,95440.0,95414.0,0.00053221]
[1734964359780,0.0001716,95440.0,95426.0,0.003]
[1734964359988,0.0001716,95440.0,95415.0,0.20961]
[1734964360218,0.0001716,95440.0,95414.0,0.00053221]
[1734964360477,0.0001716,95440.0,95428.0,0.209582]
[1734964360677,0.0001716,95440.0,95434.0,0.209567]
[1734964361104,0.0001716,95440.0,95426.0,0.001]
[1734964361105,0.0091716,95440.0,95439.0,0.0487]
[1734964361312,0.0091716,95440.0,95439.0,0.10398632]
[1734964361532,0.0001716,95450.0,95449.0,0.209535]
[1734964361748,0.00104854,95493.0,95453.0,0.636]
[1734964361947,0.23466435,95510.0,95453.0,0.636]
[1734964361948,0.00122014,95489.0,95455.0,0.1]
[1734964362149,0.00122014,95489.0,95456.0,0.10043371]
[1734964362362,0.0001716,95489.0,95472.0,0.209485]
[1734964362779,0.0001716,95489.0,95474.0,0.209481]
[1734964362979,0.0001716,95489.0,95486.0,0.209453]
[1734964363189,0.0001716,95489.0,95473.0,0.17978632]
[1734964363397,0.0001716,95489.0,95448.0,0.12105959]
[1734964363599,0.10415792,95489.0,95465.0,0.53615963]
[1734964363803,0.001,95475.0,95472.0,0.008]
[1734964364004,0.001,95475.0,95465.0,0.53615963]
[1734964364244,0.003,95475.0,95465.0,0.53615963]
[1734964364664,0.001,95475.0,95465.0,0.53615963]
[1734964365071,0.001,95475.0,95465.0,0.00015963]
[1734964365508,0.00104854,95488.0,95465.0,0.00015963]
[1734964365709,0.00104854,95488.0,95465.0,0.00115963]
[1734964365905,0.00104854,95488.0,95465.0,0.00515963]
[1734964366139,0.15104854,95488.0,95458.0,0.536]
[1734964366405,0.15104854,95488.0,95374.0,0.05278309]
[1734964366406,0.209454,95486.0,95459.0,0.10398632]
[1734964366645,0.21050454,95485.0,95459.0,0.10398632]
[1734964366896,0.209471,95479.0,95454.0,0.536]
[1734964367075,0.209523,95455.0,95435.0,0.1276]
[1734964367307,0.00104854,95454.0,95435.0,0.23158632]
[1734964367437,0.15,95471.0,95435.0,0.0487]
[1734964367438,0.209527,95453.0,95435.0,0.0487]
[1734964367636,0.00104854,95452.0,95420.0,0.55674073]
[1734964367871,0.00104854,95452.0,95422.0,0.209595]
[1734964368088,0.00104854,95452.0,95423.0,0.10398632]
[1734964368448,0.00120796,95452.0,95423.0,0.10398632]
[1734964368654,0.209537,95449.0,95424.0,0.20959]
[1734964368856,0.00104854,95448.0,95423.0,0.10398632]
[1734964369132,0.00104854,95448.0,95423.0,0.15591919]
[1734964369333,0.00104854,95448.0,95424.0,0.41918]
[1734964369651,0.00104854,95448.0,95424.0,0.20959]
[1734964370000,0.00104854,95448.0,95409.0,0.12059808]
[1734964370001,0.10398632,95448.0,95412.0,0.536]
[1734964370208,0.25503486,95447.0,95423.0,0.002]
[1734964370623,0.00104854,95447.0,95424.0,0.20959]
[1734964370829,0.209531,95451.0,95425.0,0.00104783]
[1734964370983,0.209566,95436.0,95423.0,0.002]
[1734964371195,0.00104854,95435.0,95416.0,0.001]
[1734964371609,0.20955,95443.0,95416.0,0.001]
[1734964371861,0.00104854,95442.0,95418.0,0.209602]
[1734964372037,0.00104854,95448.0,95424.0,0.002]
[1734964372254,0.00104854,95447.0,95425.0,0.209588]
[1734964372772,0.005,95435.0,95425.0,0.209588]
[1734964372975,0.005,95435.0,95419.0,0.10398632]
[1734964373263,0.005,95435.0,95420.0,0.209599]
[1734964373506,0.209558,95439.0,95411.0,0.15]
[1734964373756,0.209567,95435.0,95412.0,0.10398632]
[1734964374011,0.00104854,95434.0,95412.0,0.31360132]
[1734964374274,0.10503486,95434.0,95401.0,0.15]
[1734964374509,0.10503486,95434.0,95405.0,0.15]
[1734964374923,0.15,95432.0,95386.0,0.536]
[1734964375035,0.15,95429.0,95387.0,0.10503448]
[1734964375235,0.209617,95412.0,95388.0,0.209669]
[1734964375540,0.00104854,95411.0,95389.0,0.10503449]
[1734964375741,0.209612,95414.0,95389.0,0.10503449]
[1734964375949,0.00104854,95413.0,95405.0,0.001]
[1734964376346,0.00104854,95413.0,95405.0,0.00153221]
[1734964376559,0.0818,95447.0,95413.0,0.1]
[1734964376808,0.20956,95438.0,95413.0,0.10398632]
[1734964377003,0.1818,95465.0,95413.0,0.10398632]
[1734964377004,0.00104854,95433.0,95413.0,0.10398632]
[1734964377220,0.008,95434.0,95418.0,0.209602]
[1734964377627,0.008,95434.0,95423.0,0.209593]
[1734964377829,0.008,95434.0,95424.0,0.00104784]
[1734964378029,0.008,95434.0,95425.0,0.00104784]
[1734964378443,0.008,95434.0,95426.0,0.209586]
[1734964378641,0.00104854,95451.0,95426.0,0.209586]
[1734964378851,0.209533,95450.0,95423.0,0.31357932]
[1734964379101,0.00104854,95449.0,95424.0,0.04135793]
[1734964379385,0.00104854,95454.0,95433.0,0.20957]
[1734964379631,0.00104854,95453.0,95433.0,0.20957]
[1734964380037,0.078,95481.0,95418.0,0.001]
[1734964380038,0.209488,95471.0,95445.0,0.209542]
[1734964380241,0.00104854,95470.0,95446.0,0.00104761]
[1734964380446,0.209513,95460.0,95437.0,0.1]
[1734964380650,0.209513,95460.0,95435.0,0.536]
[1734964380651,0.00104854,95459.0,95435.0,0.536]
[1734964380866,0.001,95451.0,95435.0,0.06686654]
[1734964381073,0.001,95451.0,95430.0,0.136577]
[1734964381279,0.00015942,95451.0,95430.0,0.10398632]
[1734964381481,0.00015942,95451.0,95431.0,0.10398632]
[1734964382153,0.00015942,95451.0,95432.0,0.209573]
[1734964382349,0.00015942,95451.0,95434.0,0.209568]
[1734964382551,0.00015942,95451.0,95433.0,0.16113094]
[1734964382798,0.00015942,95451.0,95435.0,0.209566]
[1734964383000,0.00015942,95451.0,95445.0,0.1]
[1734964383211,0.00015942,95451.0,95445.0,0.10398632]
[1734964383384,0.00015942,95451.0,95436.0,0.209564]
[1734964383594,0.00015942,95451.0,95435.0,0.15]
[1734964383595,0.00015942,95451.0,95442.0,0.209549]
[1734964383799,0.00015942,95451.0,95446.0,0.20954]
[1734964384007,0.00015942,95451.0,95438.0,0.209559]
[1734964384008,0.00015942,95451.0,95439.0,0.15]
[1734964384214,0.00015942,95451.0,95440.0,0.31354132]
[1734964384412,0.00015942,95451.0,95440.0,0.10398632]
[1734964384618,0.209533,95450.0,95434.0,0.536]
[1734964384820,0.209538,95448.0,95434.0,0.536]
[1734964384977,0.00104854,95447.0,95434.0,0.536]
[1734964385378,0.209533,95450.0,95434.0,0.536]
[1734964385584,0.00104854,95449.0,95440.0,0.001]
[1734964385782,0.419076,95448.0,95440.0,0.001]
[1734964385985,0.00104854,95447.0,95425.0,0.16352789]
[1734964386188,0.00104854,95447.0,95419.0,0.02448527]
[1734964386189,0.209553,95442.0,95419.0,0.02448527]
[1734964386386,0.00104854,95441.0,95420.0,0.209599]
[1734964386622,0.00104854,95441.0,95424.0,0.209589]